fUST/lending_fUST_20240826
["ID","MTS","AMOUNT","RATE_DAILY","PERIOD"]
[336056080,1724682651700,-500.0,0.00011792,2]
[336056081,1724682651709,-500.0,0.00011792,2]
[336056082,1724682651718,-611.27,0.00011792,2]
[336056083,1724682651728,-500.0,0.00011792,2]
[336056084,1724682651737,-500.0,0.00011792,2]
[336056085,1724682651746,-691.38,0.00011792,2]
[336056086,1724682651755,-500.0,0.00011792,2]
[336056087,1724682651765,-564.72,0.00011792,2]
[336056088,1724682651775,-708.52,0.00011792,2]
[336056089,1724682651788,-500.0,0.00011792,2]
[336056090,1724682651797,-500.0,0.00011792,2]
[336056091,1724682651806,-618.53,0.00011792,2]
[336056092,1724682651815,-500.0,0.00011792,2]
[336056093,1724682651826,-533.03,0.00011792,2]
[336056094,1724682651839,-500.0,0.00011792,2]
[336056095,1724682651854,-666.9,0.00011792,2]
[336056096,1724682651865,-691.93,0.00011792,2]
[336056097,1724682651874,-500.0,0.00011792,2]
[336056098,1724682651884,-500.0,0.00011792,2]
[336056099,1724682651894,-605.88,0.00011792,2]
[336056100,1724682651904,-231.83172877,0.00011792,2]
[336056101,1724682651913,-500.0,0.00011792,2]
[336056102,1724682651923,-520.64470755,0.00011792,2]
[336056103,1724682651933,-227.08342233,0.00011792,2]
[336056104,1724682651942,-514.43343061,0.00011792,2]
[336056105,1724682651952,-500.0,0.00011792,2]
[336056106,1724682651962,-672.92,0.00011792,2]
[336056107,1724682651972,-617.16,0.00011792,2]
[336056108,1724682651981,-883.75,0.00011792,2]
[336056109,1724682651991,-1012.42,0.00011792,2]
[336056110,1724682652001,-500.0,0.00011792,2]
[336056111,1724682652011,-717.2,0.00011792,2]
[336056112,1724682652021,-843.93,0.00011792,2]
[336056113,1724682652030,-500.0,0.00011792,2]
[336056114,1724682652039,-500.0,0.00011792,2]
[336056115,1724682652049,-857.16,0.00011792,2]
[336056116,1724682652058,-500.0,0.00011792,2]
[336056117,1724682652067,-500.0,0.00011792,2]
[336056118,1724682652076,-525.22,0.00011792,2]
[336056119,1724682652086,-500.0,0.00011792,2]
[336056120,1724682652096,-500.0,0.00011792,2]
[336056121,1724682652105,-500.0,0.00011792,2]
[336056122,1724682652115,-1434.48,0.00011792,2]
[336056123,1724682652125,-500.0,0.00011792,2]
[336056124,1724682652134,-587.01,0.00011792,2]
[336056125,1724682652144,-504.2084301,0.00011792,2]
[336056126,1724682652153,-500.0,0.00011792,2]
[336056127,1724682652162,-500.0,0.00011792,2]
[336056128,1724682652172,-500.0,0.00011792,2]
[336056129,1724682652181,-500.0,0.00011792,2]
[336056130,1724682652192,-864.96,0.00011792,2]
[336056131,1724682652201,-500.0,0.00011792,2]
[336056132,1724682652210,-500.0,0.00011792,2]
[336056133,1724682652220,-500.0,0.00011792,2]
[336056134,1724682652229,-500.0,0.00011792,2]
[336056135,1724682652238,-500.0,0.00011792,2]
[336056136,1724682652247,-500.0,0.00011792,2]
[336056137,1724682652257,-758.51,0.00011792,2]
[336056138,1724682652267,-847.01,0.00011792,2]
[336056139,1724682652276,-770.12,0.00011792,2]
[336056140,1724682652287,-570.88878189,0.00011792,2]
[336056141,1724682652296,-286.88081606,0.00011792,2]
[336056142,1724682652305,-736.76,0.00011792,2]
[336056143,1724682652315,-506.48378339,0.00011792,2]
[336056144,1724682652324,-500.0,0.00011792,2]
[336056145,1724682652334,-500.0,0.00011792,2]
[336056146,1724682652343,-500.0,0.00011792,2]
[336056147,1724682652353,-500.0,0.00011792,2]
[336056148,1724682652362,-298.3123585,0.00011793,2]
[336056149,1724682652371,-400.0,0.00011873,2]
[336056150,1724682652381,-500.0,0.00011873,2]
[336056151,1724682652391,-548.65,0.0001189,2]
[336056152,1724682652400,-548.65,0.0001189,2]
[336056153,1724682652410,-548.65,0.00011891,2]
[336056154,1724682652419,-548.65,0.00011891,2]
[336056155,1724682652429,-548.65,0.00011892,2]
[336056156,1724682652439,-548.65,0.00011892,2]
[336056157,1724682652449,-548.65,0.00011892,2]
[336056158,1724682652458,-548.65,0.00011892,2]
[336056159,1724682652468,-548.76389964,0.00011892,2]
[336056160,1724682652477,-1823.92,0.00011898,2]
[336056161,1724682652487,-1823.92,0.00011898,2]
[336056162,1724682652496,-1823.92,0.00011898,2]
[336056163,1724682652505,-1823.92,0.00011898,2]
[336056164,1724682652515,-1824.05830235,0.00011898,2]
[336056165,1724682652525,-65847.86468264,0.000119,5]
[336056166,1724682652534,-778.544367,0.000119,2]
[336056167,1724682652543,-778.544367,0.000119,2]
[336056168,1724682652553,-151.0,0.000119,2]
[336056169,1724682652562,-151.0,0.000119,2]
[336056170,1724682652572,-151.0,0.000119,2]
[336056171,1724682652581,-151.0,0.000119,2]
[336056172,1724682652595,-151.0,0.000119,2]
[336056173,1724682652605,-151.0,0.000119,2]
[336056174,1724682652615,-1134.084601,0.000119,2]
[336056175,1724682652624,-1134.084601,0.000119,2]
[336056176,1724682652635,-151.0,0.000119,2]
[336056177,1724682652644,-151.0,0.000119,2]
[336056178,1724682652654,-871.946863,0.000119,2]
[336056179,1724682652664,-262.086838,0.000119,2]
[336056180,1724682652673,-151.0,0.000119,2]
[336056181,1724682652683,-871.946863,0.000119,2]
[336056182,1724682652693,-262.086838,0.000119,2]
[336056183,1724682652703,-151.0,0.000119,2]
[336056184,1724682652712,-160.445559,0.000119,2]
[336056185,1724682652722,-160.445559,0.000119,2]
[336056186,1724682652731,-548.555379,0.000119,2]
[336056187,1724682652741,-282727.363851,0.000119,2]
[336056188,1724682652750,-548.555379,0.000119,2]
[336056189,1724682652760,-722.631834,0.000119,2]
[336056190,1724682652770,-722.631834,0.000119,2]
[336056191,1724682652783,-170.414357,0.000119,2]
[336056192,1724682652792,-309.314066,0.000119,2]
[336056193,1724682652801,-170.414357,0.000119,2]
[336056194,1724682652811,-309.314066,0.000119,2]
[336056195,1724682652822,-151.0,0.000119,2]
[336056196,1724682652835,-210.045066,0.000119,2]
[336056198,1724682652844,-210.045066,0.000119,2]
[336056199,1724682652898,-153.0,0.00011945,2]
[336056200,1724682652907,-153.0,0.00011945,2]
[336056201,1724682652917,-153.0,0.00011945,2]
[336056202,1724682652926,-3000.0,0.00011965,2]
[336056203,1724682652935,-800.01960536,0.00012,2]
[336056204,1724682652945,-4911.22744656,0.00012009,2]
[336056205,1724682652954,-500.0,0.00012062,2]
[336056206,1724682652963,-556.87,0.00012062,2]
[336056207,1724682652973,-500.0,0.00012062,2]
[336056208,1724682652981,-581.73,0.00012062,2]
[336056209,1724682652990,-1751.58,0.00012062,2]
[336056210,1724682652999,-500.0,0.00012062,2]
[336056211,1724682653008,-590.08,0.00012062,2]
[336056212,1724682653017,-685.55,0.00012062,2]
[336056213,1724682653026,-1856.44,0.00012062,2]
[336056214,1724682653036,-500.0,0.00012062,2]
[336056215,1724682653045,-580.93,0.00012062,2]
[336056216,1724682653054,-500.0,0.00012062,2]
[336056217,1724682653064,-500.0,0.00012062,2]
[336056218,1724682653073,-598.23,0.00012062,2]
[336056219,1724682653084,-500.0,0.00012062,2]
[336056220,1724682653093,-500.0,0.00012062,2]
[336056221,1724682653102,-626.3,0.00012063,2]
[336056222,1724682653111,-500.0,0.00012063,2]
[336056223,1724682653121,-500.0,0.00012063,2]
[336056224,1724682653129,-500.0,0.00012063,2]
[336056225,1724682653138,-1014.55,0.00012063,2]
[336056226,1724682653148,-583.3,0.00012063,2]
[336056227,1724682653157,-500.0,0.00012063,2]
[336056228,1724682653166,-500.0,0.00012063,2]
[336056229,1724682653175,-500.0,0.00012063,2]
[336056230,1724682653185,-974.62,0.00012063,2]
[336056231,1724682653194,-500.0,0.00012063,2]
[336056232,1724682653203,-1083.57,0.00012063,2]
[336056233,1724682653212,-500.0,0.00012063,2]
[336056234,1724682653221,-500.0,0.00012063,2]
[336056235,1724682653231,-643.2,0.00012063,2]
[336056236,1724682653242,-669.35,0.00012063,2]
[336056237,1724682653252,-511.15,0.00012063,2]
[336056238,1724682653262,-562.83,0.00012063,2]
[336056239,1724682653271,-500.0,0.00012063,2]
[336056240,1724682653280,-930.59,0.00012063,2]
[336056241,1724682653290,-500.0,0.00012063,2]
[336056242,1724682653299,-703.76,0.00012063,2]
[336056243,1724682653311,-707.34,0.00012063,2]
[336056244,1724682653320,-727.69,0.00012063,2]
[336056245,1724682653330,-832.96,0.00012063,2]
[336056246,1724682653341,-1216.25,0.00012063,2]
[336056247,1724682653352,-811.37,0.00012063,2]
[336056248,1724682653361,-573.93,0.00012063,2]
[336056249,1724682653370,-509.83,0.00012063,2]
[336056250,1724682653380,-500.0,0.00012063,2]
[336056251,1724682653389,-937.56,0.00012063,2]
[336056252,1724682653398,-1115.28,0.00012063,2]
[336056253,1724682653407,-500.0,0.00012063,2]
[336056254,1724682653416,-809.25,0.00012063,2]
[336056255,1724682653425,-626.69,0.00012063,2]
[336056256,1724682653434,-685.36,0.00012063,2]
[336056257,1724682653443,-998.36,0.00012063,2]
[336056258,1724682653452,-863.94,0.00012063,2]
[336056259,1724682653462,-500.0,0.00012063,2]
[336056260,1724682653471,-1990.97,0.00012063,2]
[336056261,1724682653480,-500.0,0.00012063,2]
[336056262,1724682653490,-831.07,0.00012063,2]
[336056263,1724682653499,-500.0,0.00012063,2]
[336056264,1724682653508,-714.41,0.00012063,2]
[336056265,1724682653517,-1221.88,0.00012063,2]
[336056266,1724682653526,-500.89,0.00012063,2]
[336056267,1724682653535,-1192.19,0.00012063,2]
[336056268,1724682653544,-500.0,0.00012063,2]
[336056269,1724682653553,-500.0,0.00012063,2]
[336056270,1724682653562,-692.3,0.00012063,2]
[336056271,1724682653572,-755.04,0.00012063,2]
[336056272,1724682653583,-500.0,0.00012063,2]
[336056273,1724682653592,-589.61,0.00012063,2]
[336056274,1724682653602,-500.0,0.00012063,2]
[336056275,1724682653610,-567.02,0.00012063,2]
[336056276,1724682653619,-956.63,0.00012063,2]
[336056277,1724682653628,-648.87,0.00012063,2]
[336056278,1724682653639,-21247.59,0.00012063,2]
[336056279,1724682653649,-632.25,0.00012063,2]
[336056280,1724682653659,-519.67,0.00012063,2]
[336056281,1724682653668,-701.52,0.00012063,2]
[336056282,1724682653677,-500.0,0.00012063,2]
[336056283,1724682653686,-1046.8,0.00012063,2]
[336056284,1724682653695,-500.0,0.00012063,2]
[336056285,1724682653704,-500.0,0.00012063,2]
[336056286,1724682653713,-500.0,0.00012063,2]
[336056287,1724682653722,-502.52,0.00012063,2]
[336056288,1724682653732,-1187.24,0.00012063,2]
[336056289,1724682653741,-500.0,0.00012063,2]
[336056290,1724682653750,-705.46,0.00012063,2]
[336056291,1724682653760,-502.63,0.00012063,2]
[336056292,1724682653771,-500.0,0.00012063,2]
[336056293,1724682653781,-764.24,0.00012063,2]
[336056294,1724682653791,-500.0,0.00012063,2]
[336056295,1724682653800,-500.0,0.00012063,2]
[336056296,1724682653811,-1446.51,0.00012063,2]
[336056297,1724682653823,-656.56,0.00012063,2]
[336056298,1724682653833,-1136.38,0.00012063,2]
[336056299,1724682653843,-504.8,0.00012063,2]
[336056300,1724682653854,-571.52,0.00012063,2]
[336056301,1724682653868,-500.0,0.00012063,2]
[336056302,1724682653877,-500.0,0.00012063,2]
[336056303,1724682653887,-652.99,0.00012063,2]
[336056304,1724682653897,-500.0,0.00012063,2]
[336056305,1724682653906,-500.0,0.00012063,2]
[336056306,1724682653915,-692.96,0.00012063,2]
[336056307,1724682653925,-622.2,0.00012063,2]
[336056308,1724682653934,-500.0,0.00012063,2]
[336056309,1724682653945,-500.0,0.00012063,2]
[336056310,1724682653956,-3036.48,0.00012063,2]
[336056311,1724682653966,-577.87,0.00012063,2]
[336056312,1724682653975,-500.0,0.00012063,2]
[336056313,1724682653985,-500.0,0.00012063,2]
[336056314,1724682653997,-1174.66,0.00012063,2]
[336056315,1724682654007,-500.0,0.00012063,2]
[336056316,1724682654016,-967.79,0.00012063,2]
[336056317,1724682654027,-500.0,0.00012063,2]
[336056318,1724682654038,-500.0,0.00012063,2]
[336056319,1724682654048,-500.0,0.00012063,2]
[336056320,1724682654058,-700.99,0.00012063,2]
[336056321,1724682654068,-655.78,0.00012063,2]
[336056322,1724682654078,-707.65,0.00012063,2]
[336056323,1724682654089,-983.65,0.00012063,2]
[336056324,1724682654098,-513.66,0.00012063,2]
[336056325,1724682654107,-520.5,0.00012063,2]
[336056326,1724682654118,-731.14,0.00012063,2]
[336056327,1724682654127,-500.0,0.00012064,2]
[336056328,1724682654137,-565.71,0.00012064,2]
[336056329,1724682654146,-500.0,0.00012064,2]
[336056330,1724682654155,-500.0,0.00012064,2]
[336056331,1724682654164,-500.0,0.00012064,2]
[336056332,1724682654174,-500.0,0.00012064,2]
[336056333,1724682654183,-500.0,0.00012064,2]
[336056334,1724682654193,-365.07364795,0.00012064,2]
[336056335,1724682654202,-500.0,0.00012064,2]
[336056336,1724682654212,-500.0,0.00012064,2]
[336056337,1724682654222,-500.0,0.00012064,2]
[336056338,1724682654231,-380.08,0.00012064,2]
[336056339,1724682654240,-500.0,0.00012064,2]
[336056340,1724682654249,-500.0,0.00012064,2]
[336056341,1724682654258,-500.0,0.00012064,2]
[336056342,1724682654267,-500.0,0.00012064,2]
[336056343,1724682654277,-500.0,0.00012064,2]
[336056344,1724682654287,-500.0,0.00012064,2]
[336056345,1724682654296,-500.0,0.00012064,2]
[336056346,1724682654305,-500.0,0.00012064,2]
[336056347,1724682654315,-500.0,0.00012064,2]
[336056348,1724682654324,-500.0,0.00012064,2]
[336056349,1724682654334,-649.16,0.00012064,2]
[336056350,1724682654343,-500.0,0.00012064,2]
[336056351,1724682654353,-649.88,0.00012064,2]
[336056352,1724682654362,-500.0,0.00012064,2]
[336056353,1724682654372,-500.0,0.00012064,2]
[336056354,1724682654382,-500.0,0.00012064,2]
[336056355,1724682654391,-500.0,0.00012064,2]
[336056356,1724682654401,-656.36,0.00012064,2]
[336056357,1724682654410,-500.0,0.00012064,2]
[336056358,1724682654420,-924.1,0.00012064,2]
[336056359,1724682654430,-500.0,0.00012064,2]
[336056360,1724682654439,-500.0,0.00012064,2]
[336056361,1724682654449,-500.0,0.00012064,2]
[336056362,1724682654458,-500.0,0.00012064,2]
[336056363,1724682654468,-500.0,0.00012064,2]
[336056364,1724682654477,-500.0,0.00012064,2]
[336056365,1724682654487,-500.0,0.00012064,2]
[336056366,1724682654496,-500.0,0.00012064,2]
[336056367,1724682654505,-500.0,0.00012064,2]
[336056368,1724682654514,-500.0,0.00012064,2]
[336056369,1724682654524,-500.0,0.00012064,2]
[336056370,1724682654533,-500.0,0.00012064,2]
[336056371,1724682654543,-500.0,0.00012064,2]
[336056372,1724682654552,-500.0,0.00012064,2]
[336056373,1724682654562,-500.0,0.00012064,2]
[336056374,1724682654572,-500.0,0.00012064,2]
[336056375,1724682654582,-500.0,0.00012064,2]
[336056376,1724682654594,-500.0,0.00012064,2]
[336056377,1724682654603,-998.79,0.00012064,2]
[336056378,1724682654613,-519.26,0.00012064,2]
[336056379,1724682654623,-500.0,0.00012064,2]
[336056380,1724682654633,-500.0,0.00012064,2]
[336056381,1724682654643,-500.0,0.00012064,2]
[336056382,1724682654652,-500.0,0.00012064,2]
[336056383,1724682654663,-500.0,0.00012064,2]
[336056384,1724682654672,-500.0,0.00012064,2]
[336056385,1724682654682,-500.0,0.00012064,2]
[336056386,1724682654692,-500.0,0.00012064,2]
[336056387,1724682654701,-161.16144554,0.00012064,2]
[336056388,1724682654710,-1133.74,0.00012064,2]
[336056389,1724682654720,-500.0,0.00012064,2]
[336056390,1724682654729,-500.0,0.00012064,2]
[336056391,1724682654738,-500.0,0.00012064,2]
[336056392,1724682654748,-500.0,0.00012064,2]
[336056393,1724682654757,-1146.62,0.00012064,2]
[336056394,1724682654766,-500.0,0.00012064,2]
[336056395,1724682654780,-500.70870658,0.00012064,2]
[336056396,1724682654790,-500.0,0.00012064,2]
[336056397,1724682654799,-500.0,0.00012064,2]
[336056398,1724682654809,-521.03313257,0.00012064,2]
[336056399,1724682654819,-500.0,0.00012064,2]
[336056400,1724682654829,-500.0,0.00012064,2]
[336056401,1724682654840,-500.0,0.00012064,2]
[336056402,1724682654850,-512.56,0.00012064,2]
[336056403,1724682654861,-500.0,0.00012064,2]
[336056404,1724682654871,-998.55,0.00012064,2]
[336056405,1724682654881,-519.63,0.00012064,2]
[336056406,1724682654890,-153.01881869,0.00012064,2]
[336056407,1724682654900,-673.71,0.00012064,2]
[336056408,1724682654909,-500.0,0.00012064,2]
[336056409,1724682654919,-500.0,0.00012064,2]
[336056410,1724682654928,-500.0,0.00012064,2]
[336056411,1724682654937,-500.0,0.00012064,2]
[336056412,1724682654947,-645.25,0.00012064,2]
[336056413,1724682654956,-500.0,0.00012064,2]
[336056414,1724682654966,-698.65,0.00012064,2]
[336056415,1724682654976,-500.0,0.00012064,2]
[336056416,1724682654986,-500.0,0.00012064,2]
[336056417,1724682654995,-554.7,0.00012064,2]
[336056418,1724682655004,-350.0,0.00012064,2]
[336056419,1724682655014,-885.02,0.00012064,2]
[336056420,1724682655023,-500.0,0.00012064,2]
[336056421,1724682655033,-587.24,0.00012064,2]
[336056422,1724682655042,-500.0,0.00012064,2]
[336056423,1724682655052,-892.42,0.00012064,2]
[336056424,1724682655061,-1206.11,0.00012064,2]
[336056425,1724682655070,-536.52,0.00012064,2]
[336056426,1724682655080,-500.0,0.00012064,2]
[336056427,1724682655094,-395.21759524,0.00012064,2]
[336056428,1724682655111,-510.96989254,0.00012064,2]
[336056429,1724682655122,-542.47,0.00012064,2]
[336056430,1724682655131,-500.0,0.00012064,2]
[336056431,1724682655141,-741.15,0.00012064,2]
[336056432,1724682655151,-500.0,0.00012064,2]
[336056433,1724682655161,-500.0,0.00012064,2]
[336056434,1724682655171,-500.0,0.00012064,2]
[336056435,1724682655180,-500.0,0.00012064,2]
[336056436,1724682655190,-658.42,0.00012064,2]
[336056437,1724682655199,-612.04,0.00012064,2]
[336056438,1724682655209,-724.95,0.00012064,2]
[336056439,1724682655219,-500.0,0.00012064,2]
[336056440,1724682655228,-664.03,0.00012064,2]
[336056441,1724682655238,-359.45164017,0.00012064,2]
[336056442,1724682655248,-887.95,0.00012064,2]
[336056443,1724682655257,-500.0,0.00012064,2]
[336056444,1724682655267,-500.0,0.00012064,2]
[336056445,1724682655278,-500.0,0.00012064,2]
[336056446,1724682655288,-500.0,0.00012064,2]
[336056447,1724682655298,-500.0,0.00012064,2]
[336056448,1724682655308,-612.73,0.00012064,2]
[336056449,1724682655318,-548.79,0.00012064,2]
[336056450,1724682655327,-758.97,0.00012064,2]
[336056451,1724682655347,-500.0,0.00012064,2]
[336056452,1724682655356,-500.0,0.00012064,2]
[336056453,1724682655366,-500.0,0.00012064,2]
[336056454,1724682655375,-500.0,0.00012064,2]
[336056455,1724682655385,-568.10123215,0.00012064,2]
[336056456,1724682655395,-500.0,0.00012064,2]
[336056457,1724682655405,-500.0,0.00012064,2]
[336056458,1724682655415,-500.0,0.00012064,2]
[336056459,1724682655428,-500.0,0.00012064,2]
[336056460,1724682655438,-741.09,0.00012064,2]
[336056461,1724682655447,-500.0,0.00012064,2]
[336056462,1724682655457,-500.0,0.00012064,2]
[336056463,1724682655466,-547.25,0.00012064,2]
[336056464,1724682655476,-500.0,0.00012064,2]
[336056465,1724682655486,-500.0,0.00012064,2]
[336056466,1724682655496,-500.0,0.00012064,2]
[336056467,1724682655505,-500.0,0.00012064,2]
[336056468,1724682655514,-595.47,0.00012064,2]
[336056469,1724682655525,-500.0,0.00012064,2]
[336056470,1724682655534,-500.0,0.00012064,2]
[336056471,1724682655544,-542.24,0.00012064,2]
[336056472,1724682655554,-2101.65292388,0.00012065,2]
[336056473,1724682655563,-678.36,0.00012065,2]
[336056474,1724682655572,-588.47,0.00012065,2]
[336056475,1724682655582,-550.13,0.00012065,2]
[336056476,1724682655595,-500.0,0.00012065,2]
[336056477,1724682655605,-500.0,0.00012065,2]
[336056478,1724682655614,-644.2,0.00012065,2]
[336056479,1724682655623,-500.0,0.00012065,2]
[336056480,1724682655633,-825.34,0.00012065,2]
[336056481,1724682655643,-902.01,0.00012065,2]
[336056482,1724682655653,-705.05,0.00012065,2]
[336056483,1724682655662,-500.0,0.00012065,2]
[336056484,1724682655672,-792.92,0.00012065,2]
[336056485,1724682655681,-500.0,0.00012065,2]
[336056486,1724682655691,-500.0,0.00012065,2]
[336056487,1724682655702,-773.97,0.00012065,2]
[336056488,1724682655712,-500.0,0.00012065,2]
[336056489,1724682655723,-500.0,0.00012065,2]
[336056490,1724682655733,-500.0,0.00012065,2]
[336056491,1724682655744,-579.01,0.00012065,2]
[336056492,1724682655754,-633.63,0.00012065,2]
[336056493,1724682655764,-724.0,0.00012065,2]
[336056494,1724682655774,-500.0,0.00012065,2]
[336056495,1724682655789,-1230.77,0.00012065,2]
[336056496,1724682655802,-500.0,0.00012065,2]
[336056497,1724682655812,-505.86,0.00012065,2]
[336056498,1724682655823,-500.0,0.00012065,2]
[336056499,1724682655835,-669.71,0.00012065,2]
[336056500,1724682655844,-500.0,0.00012065,2]
[336056501,1724682655854,-1106.83,0.00012065,2]
[336056502,1724682655865,-500.0,0.00012065,2]
[336056503,1724682655875,-500.0,0.00012065,2]
[336056504,1724682655884,-1085.1,0.00012065,2]
[336056505,1724682655894,-500.0,0.00012065,2]
[336056506,1724682655904,-500.0,0.00012065,2]
[336056507,1724682655913,-610.13,0.00012065,2]
[336056508,1724682655924,-500.0,0.00012065,2]
[336056509,1724682655934,-1181.46,0.00012065,2]
[336056510,1724682655944,-938.91,0.00012065,2]
[336056511,1724682655953,-568.84,0.00012065,2]
[336056512,1724682655963,-500.0,0.00012065,2]
[336056513,1724682655973,-1039.55,0.00012065,2]
[336056514,1724682655982,-500.0,0.00012065,2]
[336056515,1724682655992,-554.69,0.00012065,2]
[336056516,1724682656002,-587.78,0.00012065,2]
[336056517,1724682656012,-500.0,0.00012065,2]
[336056518,1724682656021,-500.0,0.00012065,2]
[336056519,1724682656031,-1016.05,0.00012065,2]
[336056520,1724682656041,-500.0,0.00012065,2]
[336056521,1724682656051,-920.7,0.00012065,2]
[336056522,1724682656060,-1429.308198,0.00012065,2]
[336056523,1724682656070,-997.37438,0.00012065,2]
[336056524,1724682656079,-1429.308198,0.00012065,2]
[336056525,1724682656092,-500.0,0.00012065,2]
[336056526,1724682656102,-997.37438,0.00012065,2]
[336056527,1724682656111,-801.09,0.00012065,2]
[336056528,1724682656122,-440.881622,0.00012065,2]
[336056529,1724682656132,-440.881622,0.00012065,2]
[336056530,1724682656142,-1221.79,0.00012065,2]
[336056531,1724682656152,-431.85824233,0.00012066,2]
[336056532,1724682656163,-500.0,0.00012066,2]
[336056533,1724682656173,-500.0,0.00012066,2]
[336056534,1724682656183,-500.0,0.00012066,2]
[336056535,1724682656192,-500.0,0.00012066,2]
[336056536,1724682656203,-500.0,0.00012066,2]
[336056537,1724682656212,-500.0,0.00012066,2]
[336056538,1724682656222,-500.0,0.00012066,2]
[336056539,1724682656232,-500.0,0.00012066,2]
[336056540,1724682656242,-832.71,0.00012066,2]
[336056541,1724682656253,-500.0,0.00012066,2]
[336056542,1724682656263,-521.57,0.00012066,2]
[336056543,1724682656273,-500.0,0.00012066,2]
[336056544,1724682656284,-500.0,0.00012066,2]
[336056545,1724682656295,-500.0,0.00012066,2]
[336056546,1724682656305,-500.0,0.00012066,2]
[336056547,1724682656315,-665.17,0.00012066,2]
[336056548,1724682656325,-500.0,0.00012066,2]
[336056549,1724682656337,-500.0,0.00012066,2]
[336056550,1724682656347,-500.0,0.00012066,2]
[336056551,1724682656358,-678.27,0.00012066,2]
[336056552,1724682656368,-500.0,0.00012066,2]
[336056553,1724682656378,-829.02,0.00012066,2]
[336056554,1724682656388,-500.0,0.00012066,2]
[336056555,1724682656398,-500.0,0.00012066,2]
[336056556,1724682656409,-500.0,0.00012066,2]
[336056557,1724682656419,-500.0,0.00012066,2]
[336056558,1724682656429,-500.0,0.00012066,2]
[336056559,1724682656439,-500.0,0.00012066,2]
[336056560,1724682656449,-576.36,0.00012066,2]
[336056561,1724682656459,-500.0,0.00012066,2]
[336056562,1724682656469,-614.28,0.00012066,2]
[336056563,1724682656625,-500.0,0.00012066,2]
[336056564,1724682656636,-500.0,0.00012066,2]
[336056565,1724682656646,-500.0,0.00012066,2]
[336056566,1724682656656,-500.0,0.00012066,2]
[336056567,1724682656665,-500.0,0.00012066,2]
[336056568,1724682656675,-500.0,0.00012066,2]
[336056569,1724682656685,-500.0,0.00012066,2]
[336056570,1724682656694,-500.0,0.00012066,2]
[336056571,1724682656705,-881.93,0.00012066,2]
[336056572,1724682656714,-500.0,0.00012066,2]
[336056573,1724682656723,-500.0,0.00012066,2]
[336056574,1724682656733,-500.0,0.00012066,2]
[336056575,1724682656742,-500.0,0.00012066,2]
[336056576,1724682656753,-500.0,0.00012066,2]
[336056577,1724682656762,-500.0,0.00012066,2]
[336056578,1724682656772,-500.0,0.00012066,2]
[336056579,1724682656782,-429.94,0.00012066,2]
[336056580,1724682656793,-174.492092,0.00012066,2]